fUSD/lending_fUSD_20260217
["ID","MTS","AMOUNT","RATE_DAILY","PERIOD"]
[405800884,1771324240991,-151.0,0.0001,2]
[405800885,1771324241000,-151.0,0.0001,2]
[405800886,1771324241011,-151.0,0.0001,2]
[405800887,1771324241020,-151.0,0.0001,2]
[405800888,1771324241029,-151.0,0.0001,2]
[405800889,1771324241039,-151.0,0.0001,2]
[405800890,1771324241048,-151.0,0.0001,2]
[405800891,1771324241058,-500.0,0.0001,2]
[405800892,1771324241068,-151.0,0.0001,2]
[405800893,1771324241077,-500.0,0.0001,2]
[405800894,1771324241087,-151.0,0.0001,2]
[405800895,1771324241096,-151.0,0.0001,2]
[405800896,1771324241107,-500.0,0.0001,2]
[405800897,1771324241117,-500.0,0.0001,2]
[405800898,1771324241126,-500.0,0.0001,2]
[405800899,1771324241135,-500.0,0.0001,2]
[405800900,1771324241144,-500.0,0.0001,2]
[405800901,1771324241153,-500.0,0.0001,2]
[405800902,1771324241163,-500.0,0.0001,2]
[405800903,1771324241172,-500.0,0.0001,2]
[405800904,1771324241183,-500.0,0.0001,2]
[405800905,1771324241192,-200.0,0.0001,2]
[405800906,1771324241202,-500.0,0.0001,2]
[405800907,1771324241212,-200.0,0.0001,2]
[405800908,1771324241222,-1576.69293966,0.0001,2]
[405800909,1771324241232,-274.0,0.0001,2]
[405800910,1771324241242,-274.0,0.0001,2]
[405800911,1771324241251,-276.85061866,0.0001,2]
[405800912,1771324241261,-935.75302246,0.0001,2]
[405800913,1771324241271,-935.75302246,0.0001,2]
[405800914,1771324241284,-500.0,0.0001003,2]
[405800915,1771324241293,-500.0,0.0001003,2]
[405800916,1771324241303,-596.0,0.0001003,2]
[405800917,1771324241312,-872.0,0.0001003,2]
[405800918,1771324241323,-500.0,0.0001003,2]
[405800919,1771324241332,-500.0,0.0001003,2]
[405800920,1771324241341,-466.0,0.0001003,2]
[405800921,1771324241351,-500.0,0.0001003,2]
[405800922,1771324241360,-500.0,0.00010084,2]
[405800924,1771324241370,-500.0,0.00010084,2]
[405800925,1771324241380,-596.0,0.00010084,2]
[405800926,1771324241390,-872.0,0.00010084,2]
[405800927,1771324241399,-500.0,0.00010084,2]
[405800928,1771324241409,-500.0,0.00010084,2]
[405800929,1771324241419,-466.0,0.00010084,2]
[405800930,1771324241429,-500.0,0.00010084,2]
[405800931,1771324241439,-500.0,0.00010139,2]
[405800932,1771324241449,-611.76249723,0.00010139,2]
[405800933,1771324241459,-596.0,0.00010139,2]
[405800934,1771324241469,-872.0,0.00010139,2]
[405800935,1771324241479,-500.0,0.00010139,2]
[405800936,1771324241489,-500.0,0.00010139,2]
[405800937,1771324241499,-466.0,0.00010139,2]
[405800938,1771324241508,-500.0,0.00010139,2]
[405800939,1771324241518,-150.24,0.00010157,2]
[405800940,1771324241528,-500.0,0.00010194,2]
[405800941,1771324241537,-596.0,0.00010194,2]
[405800942,1771324241547,-872.0,0.00010194,2]
[405800943,1771324241556,-500.0,0.00010194,2]
[405800944,1771324241565,-500.0,0.00010194,2]
[405800945,1771324241574,-466.0,0.00010194,2]
[405800946,1771324241585,-500.0,0.00010194,2]
[405800947,1771324241594,-262.69,0.00010194,2]
[405800948,1771324241604,-500.0,0.00010226,2]
[405800949,1771324241613,-500.0,0.00010249,2]
[405800950,1771324241623,-596.0,0.00010249,2]
[405800951,1771324241633,-872.0,0.00010249,2]
[405800952,1771324241642,-500.0,0.00010249,2]
[405800953,1771324241652,-500.0,0.00010249,2]
[405800954,1771324241662,-466.0,0.00010249,2]
[405800955,1771324241672,-500.0,0.00010249,2]
[405800956,1771324241681,-500.0,0.00010304,2]
[405800957,1771324241691,-596.0,0.00010304,2]
[405800958,1771324241701,-872.0,0.00010304,2]
[405800959,1771324241711,-500.0,0.00010304,2]
[405800960,1771324241720,-500.0,0.00010304,2]
[405800961,1771324241730,-466.0,0.00010304,2]
[405800962,1771324241740,-500.0,0.00010304,2]
[405800963,1771324241750,-500.0,0.00010358,2]
[405800964,1771324241761,-596.0,0.00010358,2]
[405800965,1771324241771,-872.0,0.00010358,2]
[405800966,1771324241781,-500.0,0.00010358,2]
[405800967,1771324241792,-292.49812506,0.00010358,2]
[405800968,1771324241802,-466.0,0.00010358,2]
[405800969,1771324241811,-500.0,0.00010358,2]
[405800970,1771324241821,-500.0,0.00010413,2]
[405800971,1771324241830,-596.0,0.00010413,2]
[405800972,1771324241839,-872.0,0.00010413,2]
[405800973,1771324241850,-266.33885806,0.00010413,2]
[405800974,1771324241860,-466.0,0.00010413,2]
[405800975,1771324241870,-500.0,0.00010413,2]
[405800976,1771324241879,-898.32890406,0.00010464,2]
[405800977,1771324241889,-500.0,0.00010468,2]
[405800978,1771324241898,-596.0,0.00010468,2]
[405800979,1771324241907,-872.0,0.00010468,2]
[405800980,1771324241917,-466.0,0.00010468,2]
[405800981,1771324241926,-500.0,0.00010468,2]
[405800982,1771324241935,-262.69,0.00010468,2]
[405800983,1771324241944,-29999.99,0.00010475,2]
[405800984,1771324241954,-1401.0,0.00010475,2]
[405800985,1771324241963,-9999.99,0.00010475,2]
[405800986,1771324241973,-317.626651,0.0001048,2]
[405800987,1771324241982,-500.0,0.000105,2]
[405800988,1771324241992,-500.0,0.00010523,2]
[405800989,1771324242001,-596.0,0.00010523,2]
[405800990,1771324242010,-500.0,0.00010523,2]
[405800991,1771324242020,-466.0,0.00010523,2]
[405800992,1771324242029,-200.0,0.00010548,2]
[405800993,1771324242038,-500.0,0.00010548,2]
[405800994,1771324242047,-200.0,0.00010548,2]
[405800995,1771324242056,-689.226358,0.00010577,2]
[405800996,1771324242065,-1291.66125,0.00010577,2]
[405800997,1771324242075,-500.0,0.00010577,2]
[405800998,1771324242085,-596.0,0.00010577,2]
[405800999,1771324242095,-500.0,0.00010578,2]
[405801000,1771324242104,-466.0,0.00010578,2]
[405801001,1771324242114,-512.26030593,0.00010632,2]
[405801002,1771324242123,-600.2655769,0.00010632,2]
[405801003,1771324242132,-481.0942881,0.00010632,2]
[405801004,1771324242142,-466.0,0.00010632,2]
[405801005,1771324242151,-3292.0,0.00010645,2]
[405801006,1771324242161,-823.0,0.00010645,2]
[405801007,1771324242171,-736.0,0.00010645,2]
[405801008,1771324242180,-466.0,0.00010687,2]
[405801009,1771324242190,-250.0,0.00010701,2]
[405801010,1771324242199,-7997.704227,0.00010702,2]
[405801011,1771324242209,-466.0,0.00010742,2]
[405801012,1771324242219,-262.69490725,0.00010742,2]
[405801013,1771324242229,-500.0,0.00010765,2]
[405801014,1771324242238,-500.0,0.00010765,2]
[405801015,1771324242247,-597.0,0.00010765,2]
[405801016,1771324242256,-500.0,0.00010774,2]
[405801017,1771324242266,-164.61380668,0.00010779,2]
[405801018,1771324242277,-500.0,0.00010779,2]
[405801019,1771324242288,-500.0,0.00010779,2]
[405801020,1771324242298,-500.81972658,0.00010779,2]
[405801021,1771324242307,-503.06752739,0.00010779,2]
[405801022,1771324242317,-500.0,0.00010779,2]
[405801023,1771324242327,-501.16029055,0.00010779,2]
[405801024,1771324242336,-239.8459294,0.00010779,2]
[405801025,1771324242347,-500.0,0.00010779,2]
[405801027,1771324242357,-500.0,0.00010779,2]
[405801029,1771324242366,-502.12798245,0.00010779,2]
[405801030,1771324242375,-500.0,0.00010779,2]
[405801032,1771324242384,-500.86147052,0.00010779,2]
[405801033,1771324242395,-466.0,0.00010797,2]
[405801034,1771324242404,-466.0,0.00010851,2]
[405801035,1771324242414,-5814.8526128,0.000109,2]
[405801036,1771324242423,-5814.85261277,0.000109,2]
[405801037,1771324242432,-5814.85261277,0.000109,2]
[405801038,1771324242441,-468.80031656,0.00010906,2]
[405801039,1771324242450,-500.0,0.00010959,2]
[405801040,1771324242459,-226.88409827,0.00010959,2]
[405801041,1771324242469,-6034.81891893,0.00011,2]
[405801042,1771324242478,-500.0,0.00011048,2]
[405801043,1771324242487,-200.0,0.00011096,2]
[405801044,1771324242495,-500.0,0.00011096,2]
[405801045,1771324242504,-200.0,0.00011096,2]
[405801046,1771324242514,-8685.08379471,0.00011099,2]
[405801047,1771324242523,-8685.08379471,0.00011099,2]
[405801048,1771324242533,-8685.08379471,0.00011099,2]
[405801049,1771324242542,-8685.08379471,0.00011099,2]
[405801050,1771324242551,-8685.08379471,0.00011099,2]
[405801051,1771324242560,-150.0,0.00011233,2]
[405801052,1771324242572,-651.075528,0.00011309,2]
[405801053,1771324242581,-500.0,0.00011322,2]
[405801054,1771324242590,-500.97291215,0.00011327,2]
[405801055,1771324242599,-1000.0,0.00011327,2]
[405801056,1771324242608,-1000.0,0.00011327,2]
[405801057,1771324242617,-643.23767655,0.00011327,2]
[405801059,1771324242626,-1000.0,0.00011327,2]
[405801061,1771324242635,-502.71949542,0.00011327,2]
[405801063,1771324242645,-500.0,0.00011586,2]
[405801065,1771324242654,-458.0,0.00011586,2]
[405801067,1771324242663,-500.0,0.00011596,2]
[405801071,1771324242673,-200.0,0.00011644,2]
[405801074,1771324242683,-500.0,0.00011644,2]
[405801077,1771324242692,-200.0,0.00011644,2]
[405801080,1771324242701,-1252.0,0.00011709,2]
[405801082,1771324242711,-4609.0,0.0001171,2]
[405801083,1771324242720,-1152.0,0.0001171,2]
[405801085,1771324242730,-8685.08379471,0.00011832,2]
[405801087,1771324242739,-500.0,0.0001187,2]
[405801088,1771324242748,-1500.0,0.00011875,2]
[405801089,1771324242757,-1500.0,0.00011875,2]
[405801090,1771324242767,-1500.0,0.00011875,2]
[405801091,1771324242776,-500.0,0.00012144,2]
[405801092,1771324242785,-200.0,0.00012192,2]
[405801093,1771324242794,-500.0,0.00012192,2]
[405801094,1771324242803,-200.0,0.00012192,2]
[405801095,1771324242812,-5814.85261277,0.00012243,2]
[405801096,1771324242822,-639.0,0.00012408,2]
[405801097,1771324242831,-500.0,0.00012418,2]
[405801098,1771324242840,-1799.80965345,0.00012423,2]
[405801099,1771324242849,-2000.0,0.00012423,2]
[405801100,1771324242858,-2000.0,0.00012423,2]
[405801101,1771324242867,-8685.08379471,0.00012578,2]
[405801102,1771324242877,-500.0,0.00012692,2]
[405801103,1771324242886,-201.77822118,0.0001274,2]
[405801104,1771324242895,-503.55960548,0.0001274,2]
[405801105,1771324242904,-201.41552809,0.0001274,2]
[405801106,1771324242913,-1677.99,0.00012783,2]
[405801107,1771324242923,-6453.0,0.00012881,2]
[405801108,1771324242932,-1613.0,0.00012881,2]
[405801109,1771324242945,-2129.0,0.00012885,2]
[405801110,1771324242954,-70181.97252511,0.000129,2]
[405801111,1771324242964,-500.0,0.00012966,2]
[405801112,1771324242973,-502.39964348,0.00012971,2]
[405801113,1771324242982,-2500.0,0.00012971,2]
[405801114,1771324242992,-1576.69293966,0.0001298,2]
[405801115,1771324243001,-6669.47583205,0.00013,2]
[405801116,1771324243009,-381.151981,0.00013099,2]
[405801117,1771324243019,-1240.607445,0.00013221,2]
[405801118,1771324243027,-1033.329,0.00013221,2]
[405801119,1771324243037,-500.0,0.0001324,2]
[405801120,1771324243046,-214.0121963,0.00013315,2]
[405801121,1771324243055,-500.0,0.00013315,2]
[405801122,1771324243064,-8685.08379471,0.00013325,2]
[405801123,1771324243073,-500.0,0.0001337,2]
[405801124,1771324243083,-9597.245073,0.00013378,2]
[405801125,1771324243091,-500.0,0.00013425,2]
[405801126,1771324243101,-500.0,0.00013479,2]
[405801127,1771324243110,-500.0,0.00013514,2]
[405801128,1771324243119,-3000.0,0.00013519,2]
[405801129,1771324243129,-329.95129651,0.00013534,2]
[405801130,1771324243138,-250.0,0.00013629,2]
[405801131,1771324243147,-1428.38747117,0.00013629,2]
[405801132,1771324243156,-250.0,0.00013629,2]
[405801133,1771324243165,-721.12765535,0.00013629,2]
[405801134,1771324243175,-151.0,0.00013629,2]
[405801135,1771324243184,-250.0,0.00013629,2]
[405801136,1771324243194,-9552.16786547,0.00013629,2]
[405801137,1771324243203,-3000.0,0.00013629,2]
[405801138,1771324243213,-151.0,0.00013629,2]
[405801139,1771324243223,-160.0,0.00013629,2]
[405801140,1771324243232,-250.0,0.00013629,2]
[405801141,1771324243241,-3000.0,0.00013629,2]
[405801142,1771324243250,-151.0,0.00013629,2]
[405801143,1771324243260,-250.0,0.00013629,2]
[405801144,1771324243271,-151.0,0.00013629,2]
[405801145,1771324243281,-3000.0,0.00013629,2]
[405801146,1771324243291,-151.0,0.00013629,2]
[405801147,1771324243300,-3000.0,0.00013629,2]
[405801148,1771324243311,-250.0,0.00013629,2]
[405801149,1771324243320,-3000.0,0.00013629,2]
[405801150,1771324243329,-299.40346672,0.00013629,2]
[405801151,1771324243338,-151.0,0.00013629,2]
[405801152,1771324243349,-3000.0,0.00013629,2]
[405801153,1771324243359,-151.0,0.00013629,2]
[405801154,1771324243368,-3000.0,0.00013629,2]
[405801155,1771324243378,-3099.28707761,0.00013629,2]
[405801156,1771324243387,-261.90795033,0.00013629,2]
[405801157,1771324243397,-177.7218892,0.00013629,2]
[405801158,1771324243406,-500.0,0.00013629,2]
[405801159,1771324243416,-500.0,0.00013629,2]
[405801160,1771324243425,-500.0,0.00013629,2]
[405801161,1771324243435,-500.0,0.00013629,2]
[405801162,1771324243444,-500.0,0.00013629,2]
[405801163,1771324243452,-578.20924308,0.00013629,2]
[405801164,1771324243462,-196.35493044,0.00013629,2]
[405801165,1771324243471,-500.0,0.00013629,2]
[405801166,1771324243481,-500.0,0.00013629,2]
[405801167,1771324243490,-250.0,0.00013629,2]
[405801168,1771324243500,-500.0,0.00013629,2]
[405801169,1771324243509,-250.0,0.00013629,2]
[405801170,1771324243518,-500.0,0.00013629,2]
[405801171,1771324243529,-250.0,0.00013629,2]
[405801172,1771324243539,-500.0,0.00013629,2]
[405801173,1771324243548,-250.0,0.00013629,2]
[405801174,1771324243558,-500.0,0.00013629,2]
[405801175,1771324243567,-250.0,0.00013629,2]
[405801176,1771324243576,-302.70619241,0.00013629,2]
[405801177,1771324243585,-500.0,0.00013629,2]
[405801178,1771324243595,-1000.0,0.00013629,2]
[405801179,1771324243603,-500.0,0.00013629,2]
[405801180,1771324243613,-1000.0,0.00013629,2]
[405801181,1771324243622,-500.0,0.00013629,2]
[405801182,1771324243631,-526.36214318,0.00013629,2]
[405801183,1771324243640,-500.0,0.00013629,2]
[405801184,1771324243650,-162.380719,0.00013629,2]
[405801185,1771324243659,-500.0,0.00013629,2]
[405801186,1771324243668,-500.0,0.00013629,2]
[405801187,1771324243677,-500.0,0.00013629,2]
[405801188,1771324243687,-209.40437684,0.00013629,2]
[405801189,1771324243697,-3000.0,0.00013629,2]
[405801190,1771324243707,-500.0,0.00013629,2]
[405801191,1771324243716,-3000.0,0.00013629,2]
[405801192,1771324243727,-500.0,0.00013629,2]
[405801193,1771324243736,-1070.81608438,0.00013629,2]
[405801194,1771324243746,-200.0,0.00013629,2]
[405801195,1771324243755,-151.12957794,0.00013629,2]
[405801196,1771324243765,-151.0,0.00013629,2]
[405801197,1771324243774,-250.0,0.00013629,2]
[405801198,1771324243783,-250.0,0.00013629,2]
[405801199,1771324243792,-250.0,0.00013629,2]
[405801200,1771324243802,-250.0,0.00013629,2]
[405801201,1771324243811,-250.0,0.00013629,2]
[405801202,1771324243821,-250.0,0.00013629,2]
[405801203,1771324243831,-250.0,0.00013629,2]
[405801204,1771324243840,-250.0,0.00013629,2]
[405801205,1771324243849,-250.0,0.00013629,2]
[405801206,1771324243858,-250.0,0.00013629,2]
[405801207,1771324243867,-250.0,0.00013629,2]
[405801208,1771324243876,-250.0,0.00013629,2]
[405801209,1771324243886,-250.0,0.00013629,2]
[405801210,1771324243895,-250.0,0.00013629,2]
[405801211,1771324243904,-250.0,0.00013629,2]
[405801212,1771324243914,-250.0,0.00013629,2]
[405801213,1771324243924,-250.0,0.00013629,2]
[405801214,1771324243933,-253.83621088,0.00013629,2]
[405801215,1771324243943,-250.0,0.00013629,2]
[405801216,1771324243952,-250.0,0.00013629,2]
[405801217,1771324243961,-250.0,0.00013629,2]
[405801218,1771324243971,-250.0,0.00013629,2]
[405801219,1771324243980,-250.0,0.00013629,2]
[405801220,1771324243990,-279.55615727,0.00013629,2]
[405801221,1771324243999,-250.0,0.00013629,2]
[405801222,1771324244010,-250.0,0.00013629,2]
[405801223,1771324244020,-250.0,0.00013629,2]
[405801224,1771324244030,-693.3919763,0.00013629,2]
[405801225,1771324244039,-250.0,0.00013629,2]
[405801226,1771324244048,-250.0,0.00013629,2]
[405801227,1771324244060,-250.0,0.00013629,2]
[405801228,1771324244069,-250.0,0.00013629,2]
[405801229,1771324244078,-250.0,0.00013629,2]
[405801230,1771324244087,-250.0,0.00013629,2]
[405801231,1771324244096,-250.0,0.00013629,2]
[405801232,1771324244105,-250.0,0.00013629,2]
[405801233,1771324244114,-5814.85261277,0.00013657,2]
[405801234,1771324244123,-391.49,0.00013662,2]
[405801235,1771324244133,-9905.5980765,0.00013684,2]
[405801236,1771324244143,-151.0,0.00013684,2]
[405801237,1771324244152,-719.04747942,0.00013684,2]
[405801238,1771324244162,-500.0,0.00013698,2]
[405801239,1771324244171,-500.0,0.00013698,2]
[405801240,1771324244180,-500.0,0.00013698,2]
[405801241,1771324244189,-500.0,0.00013698,2]
[405801242,1771324244199,-500.0,0.00013698,2]
[405801243,1771324244208,-500.0,0.00013698,2]
[405801244,1771324244217,-500.0,0.00013698,2]
[405801245,1771324244227,-500.0,0.00013698,2]
[405801246,1771324244238,-500.0,0.00013698,2]
[405801247,1771324244247,-500.0,0.00013698,2]
[405801248,1771324244256,-500.0,0.00013698,2]
[405801249,1771324244266,-500.0,0.00013698,2]
[405801250,1771324244281,-500.0,0.00013698,2]
[405801251,1771324244291,-500.0,0.00013698,2]
[405801252,1771324244300,-500.0,0.00013698,2]
[405801253,1771324244311,-500.0,0.00013698,2]
[405801254,1771324244320,-500.0,0.00013698,2]
[405801255,1771324244329,-500.0,0.00013698,2]
[405801256,1771324244339,-500.0,0.00013698,2]
[405801257,1771324244351,-500.0,0.00013698,2]
[405801258,1771324244360,-500.0,0.00013698,2]
[405801259,1771324244370,-500.0,0.00013698,2]
[405801260,1771324244379,-500.0,0.00013698,2]
[405801261,1771324244388,-500.0,0.00013698,2]
[405801262,1771324244397,-500.0,0.00013698,2]
[405801263,1771324244407,-500.0,0.00013698,2]
[405801264,1771324244416,-500.0,0.00013698,2]
[405801265,1771324244425,-500.0,0.00013698,2]
[405801266,1771324244435,-500.0,0.00013698,2]
[405801267,1771324244444,-1015.72,0.00013698,2]
[405801268,1771324244453,-1015.72,0.00013698,2]
[405801269,1771324244463,-1015.72,0.00013698,2]
[405801270,1771324244472,-1015.72,0.00013698,2]
[405801271,1771324244482,-1015.72,0.00013698,2]
[405801272,1771324244491,-1015.72,0.00013698,2]
[405801273,1771324244501,-1015.72,0.00013698,2]
[405801274,1771324244510,-1015.72,0.00013698,2]
[405801275,1771324244519,-1015.72,0.00013698,2]
[405801276,1771324244528,-1015.72,0.00013698,2]
[405801277,1771324244538,-1015.72,0.00013698,2]
[405801278,1771324244547,-1015.72,0.00013698,2]
[405801279,1771324244557,-1015.72,0.00013698,2]
[405801280,1771324244566,-1015.72,0.00013698,2]
[405801281,1771324244575,-456.05800986,0.00013698,2]
[405801282,1771324244584,-500.0,0.00013698,2]
[405801283,1771324244593,-500.0,0.00013698,2]
[405801284,1771324244602,-500.0,0.00013698,2]
[405801285,1771324244611,-500.0,0.00013698,2]
[405801286,1771324244621,-500.0,0.00013698,2]
[405801287,1771324244630,-500.0,0.00013698,2]
[405801288,1771324244639,-500.0,0.00013698,2]
[405801289,1771324244648,-500.0,0.00013698,2]
[405801290,1771324244657,-500.0,0.00013698,2]
[405801291,1771324244667,-500.0,0.00013698,2]
[405801292,1771324244677,-430.55674509,0.00013698,2]
[405801293,1771324244686,-503.24510855,0.00013698,2]
[405801294,1771324244697,-500.0,0.00013698,2]
[405801295,1771324244706,-500.0,0.00013698,2]
[405801296,1771324244715,-500.0,0.00013698,2]
[405801297,1771324244727,-205.75338066,0.00013698,2]
[405801298,1771324244736,-500.0,0.00013698,2]
[405801299,1771324244979,-500.0,0.00013698,2]
[405801300,1771324244989,-500.0,0.00013698,2]
[405801301,1771324244998,-500.0,0.00013698,2]
[405801302,1771324245008,-500.0,0.00013698,2]
[405801303,1771324245018,-500.0,0.00013698,2]
[405801304,1771324245027,-500.0,0.00013698,2]
[405801305,1771324245036,-500.0,0.00013698,2]
[405801306,1771324245046,-500.0,0.00013698,2]
[405801307,1771324245055,-500.0,0.00013698,2]
[405801308,1771324245064,-500.0,0.00013698,2]
[405801309,1771324245073,-500.0,0.00013698,2]
[405801310,1771324245083,-500.0,0.00013698,2]
[405801311,1771324245092,-500.0,0.00013698,2]
[405801312,1771324245101,-500.0,0.00013698,2]
[405801313,1771324245110,-500.0,0.00013698,2]
[405801314,1771324245120,-400.27334963,0.00013698,2]
[405801315,1771324245129,-500.0,0.00013698,2]
[405801316,1771324245138,-460.46927555,0.00013698,2]
[405801317,1771324245148,-915.21,0.00013698,2]
[405801318,1771324245157,-915.21,0.00013698,2]
[405801319,1771324245167,-915.21,0.00013698,2]
[405801320,1771324245177,-915.21,0.00013698,2]
[405801321,1771324245186,-915.21,0.00013698,2]
[405801322,1771324245195,-915.21,0.00013698,2]
[405801323,1771324245204,-915.21,0.00013698,2]
[405801324,1771324245214,-915.21,0.00013698,2]
[405801325,1771324245223,-915.21,0.00013698,2]
[405801326,1771324245232,-915.21,0.00013698,2]
[405801327,1771324245242,-915.21,0.00013698,2]
[405801328,1771324245251,-915.21,0.00013698,2]
[405801329,1771324245260,-915.21,0.00013698,2]
[405801330,1771324245270,-915.21,0.00013698,2]
[405801331,1771324245283,-915.21,0.00013698,2]
[405801332,1771324245292,-915.21,0.00013698,2]
[405801333,1771324245304,-500.0,0.00013698,2]
[405801334,1771324245324,-500.0,0.00013698,2]
[405801335,1771324245336,-500.0,0.00013698,2]
[405801336,1771324245345,-307.44205355,0.00013698,2]
[405801337,1771324245355,-500.0,0.00013698,2]
[405801338,1771324245364,-500.0,0.00013698,2]
[405801339,1771324245374,-500.0,0.00013698,2]
[405801340,1771324245383,-500.0,0.00013698,2]
[405801341,1771324245392,-500.0,0.00013698,2]
[405801342,1771324245401,-500.0,0.00013698,2]
[405801343,1771324245411,-500.0,0.00013698,2]
[405801344,1771324245420,-500.0,0.00013698,2]
[405801345,1771324245429,-500.0,0.00013698,2]
[405801346,1771324245439,-500.0,0.00013698,2]
[405801347,1771324245448,-500.0,0.00013698,2]
[405801348,1771324245458,-500.0,0.00013698,2]
[405801349,1771324245467,-500.0,0.00013698,2]
[405801350,1771324245478,-500.0,0.00013698,2]
[405801351,1771324245487,-500.0,0.00013698,2]
[405801352,1771324245496,-500.0,0.00013698,2]
[405801353,1771324245508,-500.0,0.00013698,2]
[405801354,1771324245517,-500.0,0.00013698,2]
[405801355,1771324245526,-500.0,0.00013698,2]
[405801356,1771324245536,-500.0,0.00013698,2]
[405801357,1771324245546,-500.0,0.00013698,2]
[405801358,1771324245555,-500.0,0.00013698,2]
[405801359,1771324245565,-500.0,0.00013698,2]
[405801360,1771324245575,-500.0,0.00013698,2]
[405801361,1771324245584,-500.0,0.00013698,2]
[405801362,1771324245594,-500.0,0.00013698,2]
[405801363,1771324245603,-500.0,0.00013698,2]
[405801364,1771324245613,-500.0,0.00013698,2]
[405801365,1771324245622,-500.0,0.00013698,2]
[405801366,1771324245631,-500.0,0.00013698,2]
[405801367,1771324245641,-500.0,0.00013698,2]
[405801368,1771324245651,-500.0,0.00013698,2]
[405801369,1771324245663,-500.0,0.00013698,2]
[405801370,1771324245673,-500.0,0.00013698,2]
[405801371,1771324245683,-500.0,0.00013698,2]
[405801372,1771324245692,-500.0,0.00013698,2]
[405801373,1771324245702,-500.0,0.00013698,2]
[405801374,1771324245711,-500.0,0.00013698,2]
[405801375,1771324245722,-500.0,0.00013698,2]
[405801376,1771324245732,-500.0,0.00013698,2]
[405801377,1771324245742,-500.0,0.00013698,2]
[405801378,1771324245753,-500.0,0.00013698,2]
[405801379,1771324245763,-500.0,0.00013698,2]
[405801380,1771324245772,-500.0,0.00013698,2]
[405801381,1771324245782,-500.0,0.00013698,2]
[405801382,1771324245792,-500.0,0.00013698,2]
[405801383,1771324245801,-500.0,0.00013698,2]
[405801384,1771324245811,-500.0,0.00013698,2]
[405801385,1771324245821,-500.0,0.00013698,2]
[405801386,1771324245830,-500.0,0.00013698,2]
[405801387,1771324245839,-500.0,0.00013698,2]
[405801388,1771324245849,-500.0,0.00013698,2]
[405801389,1771324245858,-500.0,0.00013698,2]
[405801390,1771324245868,-500.0,0.00013698,2]
[405801391,1771324245877,-500.0,0.00013698,2]
[405801392,1771324245887,-500.0,0.00013698,2]
[405801393,1771324245896,-500.0,0.00013698,2]
[405801394,1771324245905,-500.0,0.00013698,2]
[405801395,1771324245915,-500.0,0.00013698,2]
[405801396,1771324245924,-500.0,0.00013698,2]
[405801397,1771324245933,-500.0,0.00013698,2]
[405801398,1771324245943,-522.2154278,0.00013698,2]
[405801399,1771324245952,-500.0,0.00013698,2]
[405801400,1771324245961,-500.0,0.00013698,2]
[405801401,1771324245971,-500.0,0.00013698,2]
[405801402,1771324245982,-500.0,0.00013698,2]
[405801403,1771324245991,-500.0,0.00013698,2]
[405801404,1771324246001,-500.0,0.00013698,2]